fUSD/lending_fUSD_20240523
["ID","MTS","AMOUNT","RATE_DAILY","PERIOD"]
[327744135,1716422623459,-643.64424175,0.00012897,2]
[327744136,1716422623490,-163.33030764,0.00012898,2]
[327744137,1716422623515,-800.0,0.000129,4]
[327744138,1716422623538,-528.8047,0.000129,2]
[327744139,1716422623567,-7864.22075061,0.000129,2]
[327744140,1716422653448,-643.64424175,0.00012899,2]
[327744141,1716422653473,-210.59814939,0.000129,2]
[327744142,1716422653495,-211.43280978,0.000129,2]
[327744143,1716422653517,-172.68941544,0.000129,2]
[327744144,1716422653540,-12261.63538364,0.000129,2]
[327744145,1716422663629,184.12,0.00021589,30]
[327744146,1716422663940,184.12,0.00025135,30]
[327744148,1716422846315,300.0,0.000128,4]
[327744149,1716422849429,300.0,0.000278,30]
[327744150,1716422884753,150.0,0.000279,30]
[327744151,1716422923626,155.0,0.00028,30]
[327744152,1716422929361,2000.0,0.00031,120]
[327744164,1716422985598,1486.3414,0.000128,2]
[327744165,1716422990455,35045.0,0.00031,120]
[327744173,1716423032208,-643.64424175,0.00012869,2]
[327744174,1716423032218,-428.66144489,0.00012899,2]
[327744175,1716423032265,-786.15031791,0.00012899,2]
[327744176,1716423032275,-90093.8068021,0.000129,2]
[327744177,1716423032288,-1690.95240468,0.000129,2]
[327744178,1716423032319,-912.27462891,0.000129,2]
[327744179,1716423032332,-308.775,0.000129,2]
[327744180,1716423032343,-787.72537109,0.000129,2]
[327744181,1716423032355,-5450.15237545,0.000129,2]
[327744182,1716423032367,-1546.09238039,0.000129,2]
[327744183,1716423032381,-205649.14465374,0.000129,2]
[327744184,1716423032391,-6536.9052111,0.000129,2]
[327744185,1716423032400,-162.43358455,0.000129,2]
[327744186,1716423032410,-516.7276849,0.000129,2]
[327744187,1716423032419,-700.0,0.000129,4]
[327744188,1716423032429,-173.84393451,0.000129,2]
[327744189,1716423032438,-503.85224682,0.00012999,2]
[327744190,1716423032448,-1069.36870737,0.00012999,3]
[327744191,1716423032457,-46618.75227676,0.00013,2]
[327744192,1716423032469,-218961.95011768,0.00013,2]
[327744193,1716423032481,-1405.14286718,0.00013,2]
[327744194,1716423032577,-2142.48428039,0.00013,2]
[327744195,1716423032588,-21542.44191226,0.00013,2]
[327744196,1716423032600,-1641.7,0.00013,2]
[327744197,1716423032612,-301.90641716,0.00013,2]
[327744198,1716423032623,-2537.80431815,0.00013,2]
[327744200,1716423032635,-2080.91067796,0.00013,2]
[327744230,1716423038165,-727.3743122,0.00013,2]
[327744233,1716423038176,-335.39622056,0.00013,2]
[327744235,1716423038188,-2719.79495747,0.00013,2]
[327744240,1716423038226,-8668.30132127,0.00013,2]
[327744242,1716423038237,-384.2290936,0.00013,2]
[327744244,1716423038248,-782.39699299,0.00013,2]
[327744246,1716423038260,-169354.29094397,0.00013,2]
[327744247,1716423038271,-21906.41557907,0.00013,2]
[327744248,1716423038296,-8574.58982,0.00013,2]
[327744249,1716423038307,-1811.42301576,0.00013,2]
[327744250,1716423038317,-302.5936972,0.00013,2]
[327744251,1716423038354,-256323.68372266,0.00013,2]
[327744252,1716423038412,-13542.78771253,0.00013,2]
[327744253,1716423038423,-3703.81801209,0.00013,2]
[327744254,1716423038434,-292.39394109,0.00013,2]
[327744255,1716423038444,-534.67786524,0.00013,2]
[327744256,1716423038456,-520.089,0.00013,2]
[327744257,1716423038471,-389.719119,0.00013,2]
[327744262,1716423040282,-1179.86580013,0.00013,2]
[327744264,1716423040295,-489.59093316,0.00013,2]
[327744266,1716423040308,-583.612171,0.00013,2]
[327744267,1716423040320,-627.57,0.00013,2]
[327744268,1716423040401,-270554.1836631,0.00013,2]
[327744269,1716423040413,-7976.82680112,0.00013,2]
[327744270,1716423040575,-65198.59352863,0.00013,2]
[327744271,1716423040585,-3000.0,0.00013,2]
[327744272,1716423040594,-3705.79,0.00013,2]
[327744273,1716423040604,-3632.225,0.00013,2]
[327744274,1716423040614,-3722.644,0.00013,2]
[327744275,1716423040624,-3700.903,0.00013,2]
[327744276,1716423040634,-299.78,0.00013513,2]
[327744277,1716423040645,-499.99,0.00013671,2]
[327744278,1716423040658,-1029.94791917,0.00013698,5]
[327744279,1716423040667,-6536.90521101,0.000139,2]
[327744280,1716423040677,-163.78,0.00013973,2]
[327744281,1716423040687,-159.21,0.00013973,2]
[327744282,1716423040698,-282.22,0.00013973,2]
[327744283,1716423040709,-162.13,0.00013973,2]
[327744284,1716423040719,-3000.0,0.0001405,2]
[327744285,1716423040731,-1100.0,0.00014226,2]
[327744286,1716423040742,-516.72768483,0.00014386,2]
[327744287,1716423040752,-6536.90521101,0.000149,2]
[327744288,1716423040761,-62185.92648205,0.00015,2]
[327744289,1716423040770,-619.02429447,0.00015,2]
[327744290,1716423040779,-257.72182443,0.00015,2]
[327744291,1716423040788,-3000.0,0.0001531,2]
[327744292,1716423040798,-5246.78,0.00015352,2]
[327744293,1716423040807,-173.84393451,0.000154,2]
[327744294,1716423040817,-200.0,0.00015431,2]
[327744295,1716423040826,-446.46,0.00015444,2]
[327744296,1716423040836,-2751.0,0.00015446,2]
[327744297,1716423040845,-200.0,0.00015456,2]
[327744298,1716423040854,-500.0,0.00015515,2]
[327744299,1716423040864,-175.65,0.0001553,2]
[327744300,1716423040873,-800.0,0.00015542,2]
[327744301,1716423040883,-250.0,0.00015548,2]
[327744303,1716423040892,-1187.25,0.00015565,2]
[327744305,1716423040901,-153.9,0.00015637,2]
[327744306,1716423040911,-211.43280974,0.0001565,2]
[327744308,1716423040922,-250.0,0.00015672,2]
[327744309,1716423040931,-299.78,0.00015777,2]
[327744311,1716423040941,-6536.90521101,0.000159,2]
[327744313,1716423040950,-182.04,0.00015918,2]
[327744315,1716423040959,-516.72768483,0.00015971,2]
[327744317,1716423040969,-153.9,0.00016044,2]
[327744319,1716423040979,-170.08,0.00016156,2]
[327744321,1716423040988,-5947.38,0.00016438,2]
[327744323,1716423040999,-153.9,0.00016452,2]
[327744325,1716423041009,-1227.2363061,0.000165,2]
[327744327,1716423041019,-3000.0,0.0001655,2]
[327744329,1716423041032,-154.87,0.00016665,2]
[327744331,1716423041042,-154.87,0.0001667,2]
[327744333,1716423041051,-1000.0,0.00016676,2]
[327744335,1716423041060,-1000.0,0.00016676,2]
[327744336,1716423041070,-1000.0,0.00016676,2]
[327744337,1716423041079,-1000.0,0.00016676,2]
[327744338,1716423041089,-1000.0,0.00016676,2]
[327744339,1716423041099,-1000.0,0.00016676,2]
[327744340,1716423041108,-1000.0,0.00016676,2]
[327744341,1716423041118,-1000.0,0.00016676,2]
[327744342,1716423041127,-1000.0,0.00016676,2]
[327744343,1716423041136,-1000.0,0.00016676,2]
[327744344,1716423041145,-1000.0,0.00016676,2]
[327744345,1716423041154,-1000.0,0.00016676,2]
[327744346,1716423041163,-1000.0,0.00016676,2]
[327744347,1716423041172,-1000.0,0.00016676,2]
[327744348,1716423041181,-1000.0,0.00016676,2]
[327744349,1716423041191,-1000.0,0.00016676,2]
[327744350,1716423041200,-1000.0,0.00016676,2]
[327744351,1716423041209,-1000.0,0.00016676,2]
[327744352,1716423041218,-797.0,0.00016676,2]
[327744353,1716423041227,-154.87,0.00016676,2]
[327744354,1716423041236,-154.87,0.00016682,2]
[327744355,1716423041246,-800.0,0.00016685,2]
[327744356,1716423041255,-154.87,0.00016687,2]
[327744357,1716423041264,-154.87,0.00016693,2]
[327744358,1716423041273,-154.87,0.00016698,2]
[327744359,1716423041282,-1000.0,0.00016698,2]
[327744360,1716423041292,-1000.0,0.00016698,2]
[327744361,1716423041301,-490.0,0.00016698,2]
[327744362,1716423041311,-154.87,0.00016704,2]
[327744363,1716423041321,-154.87,0.00016709,2]
[327744364,1716423041331,-800.0,0.00016712,2]
[327744365,1716423041340,-154.87,0.00016715,2]
[327744366,1716423041349,-154.87,0.0001672,2]
[327744367,1716423041358,-154.87,0.00016726,2]
[327744368,1716423041367,-154.87,0.00016732,2]
[327744369,1716423041376,-154.87,0.00016737,2]
[327744370,1716423041386,-154.87,0.00016743,2]
[327744371,1716423041394,-154.87,0.00016748,2]
[327744372,1716423041403,-300.0,0.00016754,2]
[327744373,1716423041413,-6536.90521101,0.000169,2]
[327744374,1716423041422,-3640.956,0.00017236,2]
[327744375,1716423041431,-173.08,0.00017332,2]
[327744376,1716423041440,-200.0,0.0001736,2]
[327744377,1716423041449,-3695.571,0.00017371,2]
[327744378,1716423041458,-839.0,0.000174,2]
[327744379,1716423041468,-5831.0,0.000174,2]
[327744380,1716423041477,-800.0,0.00017485,2]
[327744381,1716423041486,-516.72768483,0.00017557,2]
[327744382,1716423041497,-3743.899,0.00017585,2]
[327744383,1716423041506,-150.0,0.00017616,2]
[327744384,1716423041515,-3000.0,0.000178,2]
[327744385,1716423041524,-1100.0,0.000178,6]
[327744386,1716423041533,-3640.537,0.0001781,2]
[327744387,1716423041543,-166.15120559,0.000179,2]
[327744388,1716423041551,-3743.415,0.000179,2]
[327744389,1716423041560,-6536.90521101,0.000179,2]
[327744390,1716423041570,-1400.0,0.000179,6]
[327744391,1716423041579,-173.84393451,0.000179,2]
[327744392,1716423041589,-201.28727559,0.000179,2]
[327744393,1716423041598,-170.21516562,0.000179,2]
[327744394,1716423041607,-8297.1283844,0.000179,2]
[327744395,1716423041616,-1069.89063374,0.000179,2]
[327744396,1716423041625,-241.43471242,0.000179,2]
[327744397,1716423041634,-3426.8899044,0.00017986,2]
[327744398,1716423041644,-14516.6653471,0.00017986,2]
[327744399,1716423041658,-113675.9792432,0.00017986,2]
[327744400,1716423041667,-2739.5082142,0.00017986,2]
[327744401,1716423041677,-3726.812,0.00017987,2]
[327744402,1716423041686,-200.0,0.00017998,2]
[327744403,1716423041696,-324.40009856,0.00017998,2]
[327744404,1716423041706,-155.0,0.00017999,2]
[327744405,1716423041716,-1151.96077803,0.00017999,5]
[327744406,1716423041725,-150.0,0.00017999,2]
[327744407,1716423041737,-3639.321,0.00018,2]
[327744408,1716423041747,-474050.83259665,0.00018,2]
[327744409,1716423042695,-3811.30710493,0.00018,2]
[327744414,1716423043201,-1149.42897912,0.00018,2]
[327744424,1716423043314,-50300.0,0.00018,2]
[327744425,1716423043325,-245925.66404924,0.00018,2]
[327744427,1716423043621,-1868.51527214,0.00018,2]
[327744428,1716423043671,-620.59887641,0.00018,2]
[327744504,1716423047008,-182.04,0.00015672,2]
[327744505,1716423047018,-6327.19804401,0.00018,2]
[327744506,1716423047070,-273.97438574,0.00018,2]
[327744510,1716423203584,163.66,0.00021589,30]
[327744511,1716423203908,163.66,0.00025135,30]
[327744515,1716423853422,154.03,0.00021589,30]
[327744516,1716423853771,154.03,0.00025356,30]
[327744537,1716424231556,-643.64424175,0.00012997,2]
[327744538,1716424231566,-704.70365996,0.00012998,2]
[327744539,1716424231575,-1716.25874398,0.00013,2]
[327744540,1716424231587,-1381.95190557,0.00013,2]
[327744541,1716424231598,-548.82435045,0.00013,2]
[327744542,1716424231607,-2038.20291377,0.00013,2]
[327744543,1716424231619,-1562.62308623,0.00013,2]
[327744544,1716424231628,-728.46253758,0.00013,2]
[327744545,1716424231666,-2964.02946242,0.00013,2]
[327744546,1716424231676,-3689.587,0.00013,2]
[327744547,1716424231685,-2741.05074612,0.00013,2]
[327744548,1716424231696,-892.35725388,0.00013,2]
[327744549,1716424231706,-3739.121,0.00013,2]
[327744550,1716424231715,-198.96159457,0.00013,2]
[327744551,1716424231726,-3495.22640543,0.00013,2]
[327744552,1716424231735,-2523.1015026,0.00013,2]
[327744553,1716424231747,-1187.2614974,0.00013,2]
[327744554,1716424231756,-3653.034,0.00013,2]
[327744555,1716424231766,-638.9724444,0.00013,2]
[327744556,1716424231792,-1666.21666469,0.00013,2]
[327744557,1716424231804,-741.8811006,0.00013,2]
[327744558,1716424231815,-689.68979031,0.00013,2]
[327744559,1716424231825,-1508.14291353,0.00013,2]
[327744560,1716424231837,-827.62713501,0.00013,2]
[327744561,1716424231848,-1359.52095146,0.00013,2]
[327744562,1716424231857,-317.16,0.00013754,2]
[327744563,1716424231867,-256.48,0.00013973,2]
[327744564,1716424231876,-163.2,0.00013973,2]
[327744565,1716424231886,-155.59,0.00013973,2]
[327744566,1716424231895,-619.02429447,0.00015,2]
[327744567,1716424231904,-778.73388259,0.00015672,2]
[327744569,1716424231915,-2920.26611741,0.00015672,2]
[327744570,1716424231925,-657.97,0.0001587,2]
[327744571,1716424231934,-357.69,0.00015901,2]
[327744572,1716424231944,-250.0,0.00015922,2]
[327744573,1716424231953,-1000.0,0.00015941,2]
[327744574,1716424231963,-200.0,0.0001595,2]
[327744575,1716424231972,-250.0,0.00016,2]
[327744576,1716424231982,-832.01,0.00016,2]
[327744577,1716424231997,-317.16,0.00016018,2]
[327744578,1716424232006,-151.89,0.00016018,2]
[327744579,1716424232015,-200.0,0.00016032,2]
[327744580,1716424232027,-396.31,0.00016107,2]
[327744581,1716424232037,-702.55,0.00016109,2]
[327744582,1716424232047,-3289.73579581,0.00016109,6]
[327744583,1716424232059,-3874.05420419,0.00016109,6]
[327744584,1716424232071,-500.0,0.00016143,2]
[327744585,1716424232080,-2751.0,0.00016174,2]
[327744586,1716424232089,-593.62,0.00016217,2]
[327744587,1716424232098,-244.31,0.00016311,2]
[327744588,1716424232108,-167.67,0.00016428,2]
[327744589,1716424232117,-1227.2363061,0.000165,2]
[327744590,1716424232126,-1084.26,0.00016662,2]
[327744591,1716424232136,-499.99,0.0001696,2]
[327744592,1716424232145,-167.0,0.00017113,2]
[327744593,1716424232154,-5248.0,0.000173,2]
[327744594,1716424232164,-170.08,0.0001737,2]
[327744595,1716424232173,-300.0,0.00017453,2]
[327744596,1716424232182,-173.08,0.00017602,2]
[327744597,1716424232192,-351.98,0.00017616,2]
[327744598,1716424232201,-163.54,0.00017616,2]
[327744599,1716424232210,-167.0,0.00017678,2]
[327744600,1716424232220,-1565.2946698,0.00017728,2]
[327744601,1716424232229,-200.0,0.00017856,2]
[327744602,1716424232238,-58075.82573906,0.00017897,2]
[327744603,1716424232248,-39189.7331,0.000179,2]
[327744604,1716424232257,-500.0,0.000179,2]
[327744605,1716424232267,-45702.67602584,0.000179,2]
[327744606,1716424232281,-6193.99777999,0.000179,2]
[327744607,1716424232292,-926.29324996,0.000179,2]
[327744608,1716424232391,-2335.98145631,0.000179,2]
[327744609,1716424232403,-457.41762964,0.000179,2]
[327744610,1716424232415,-854.16488114,0.000179,2]
[327744611,1716424232426,-464.47486671,0.000179,2]
[327744612,1716424232438,-1132.38722525,0.000179,2]
[327744613,1716424232449,-2400.0,0.000179,2]
[327744614,1716424232471,-2456.09841182,0.000179,2]
[327744615,1716424232483,-37076.50847334,0.000179,2]
[327744616,1716424232492,-1000.0,0.000179,2]
[327744617,1716424232502,-164.33107518,0.000179,2]
[327744618,1716424232511,-174.39908633,0.000179,2]
[327744619,1716424232521,-214.0,0.000179,2]
[327744620,1716424232532,-5694.88655471,0.000179,2]
[327744621,1716424232541,-7500.0,0.000179,2]
[327744622,1716424232551,-160.84571028,0.000179,2]
[327744623,1716424232560,-1000.0,0.00017934,2]
[327744624,1716424232571,-84541.7679763,0.00017986,2]
[327744625,1716424232580,-215.0593734,0.0001799,2]
[327744626,1716424232589,-410.27026242,0.00017998,2]
[327744627,1716424232599,-391.24290442,0.00017998,2]
[327744628,1716424232609,-1034.6412428,0.00017999,5]
[327744629,1716424232618,-3941.31844974,0.00017999,2]
[327744630,1716424232627,-994386.17181117,0.00018,2]
[327744631,1716424232639,-31420.96678108,0.00018,2]
[327744632,1716424232651,-21584.95682334,0.00018,2]
[327744633,1716424232662,-10648.25773862,0.00018,2]
[327744634,1716424232672,-158.48372415,0.00018,2]
[327744635,1716424232681,-39237.5216178,0.00018,2]
[327744636,1716424232693,-854.70609405,0.00018,2]
[327744637,1716424232705,-8426.12149942,0.00018,2]
[327744638,1716424232715,-1148.67888,0.00018,2]
[327744639,1716424232724,-3733.96,0.00018,2]
[327744640,1716424232734,-167.0,0.00018243,2]
[327744641,1716424232744,-317.16,0.00018282,2]
[327744642,1716424232753,-8119.0,0.00018372,2]
[327744643,1716424232763,-500.0,0.00018372,2]
[327744644,1716424232772,-3699.0,0.00018412,2]
[327744645,1716424232783,-5694.88655461,0.00018445,2]
[327744646,1716424232793,-800.0,0.00018712,2]
[327744647,1716424232802,-150.0,0.0001875,2]
[327744648,1716424232812,-151.655,0.0001875,2]
[327744649,1716424232821,-207.704,0.0001875,2]
[327744650,1716424232831,-150.982,0.0001875,2]
[327744651,1716424232840,-150.0,0.0001875,2]
[327744652,1716424232850,-151.397,0.0001875,2]
[327744653,1716424232859,-245.678,0.0001875,2]
[327744654,1716424232869,-154.688,0.0001875,2]
[327744655,1716424232878,-150.0,0.0001875,2]
[327744656,1716424232888,-150.0,0.0001875,2]
[327744657,1716424232897,-150.756,0.0001875,2]
[327744658,1716424232907,-150.0,0.0001875,2]
[327744659,1716424232916,-160.088,0.0001875,2]
[327744660,1716424232926,-151.361,0.0001875,2]
[327744661,1716424232935,-150.0,0.0001875,2]
[327744662,1716424232945,-150.2,0.0001875,2]
[327744663,1716424232955,-150.0,0.0001875,2]
[327744664,1716424232964,-167.0,0.00018808,2]
[327744665,1716424232974,-300.0,0.00018823,2]
[327744666,1716424232984,-5694.88655461,0.00018991,2]
[327744667,1716424232996,-155.0,0.00019,2]
[327744668,1716424233005,-410.39631753,0.00019,2]
[327744669,1716424233015,-642.94939557,0.00019178,2]
[327744670,1716424233027,-608.51391878,0.00019178,2]
[327744671,1716424233037,-500.0,0.00019178,2]
[327744672,1716424233046,-418.34669064,0.00019178,2]
[327744673,1716424233058,-81.65330936,0.00019178,2]
[327744674,1716424233069,-500.0,0.00019178,2]
[327744675,1716424233079,-500.0,0.00019178,2]
[327744676,1716424233089,-311.93161527,0.00019178,2]
[327744677,1716424233100,-188.06838473,0.00019178,2]
[327744678,1716424233109,-500.0,0.00019178,2]
[327744679,1716424233118,-145.73609764,0.00019178,2]
[327744680,1716424233130,-354.26390236,0.00019178,2]
[327744681,1716424233139,-500.0,0.00019178,2]
[327744682,1716424233148,-500.0,0.00019178,2]
[327744683,1716424233157,-272.97308778,0.00019178,2]
[327744684,1716424233170,-227.02691222,0.00019178,2]
[327744685,1716424233179,-149.22869958,0.00019178,2]
[327744686,1716424233220,-350.77130042,0.00019178,2]
[327744687,1716424233229,-500.0,0.00019178,2]
[327744688,1716424233239,-500.0,0.00019178,2]
[327744689,1716424233248,-500.0,0.00019178,2]
[327744690,1716424233258,-500.0,0.00019178,2]
[327744691,1716424233268,-22.28320504,0.00019178,2]
[327744692,1716424233282,-477.71679496,0.00019178,2]
[327744693,1716424233291,-500.0,0.00019178,2]
[327744694,1716424233302,-500.0,0.00019178,2]
[327744695,1716424233312,-488.5119591,0.00019178,2]
[327744696,1716424233324,-11.4880409,0.00019178,2]
[327744697,1716424233333,-500.0,0.00019178,2]
[327744698,1716424233521,-500.0,0.00019178,2]
[327744699,1716424233533,-500.0,0.00019178,2]
[327744700,1716424233542,-500.0,0.00019178,2]
[327744701,1716424233551,-500.0,0.00019178,2]
[327744702,1716424233561,-500.0,0.00019178,2]
[327744703,1716424233570,-500.0,0.00019178,2]
[327744704,1716424233579,-500.0,0.00019178,2]
[327744705,1716424233589,-500.0,0.00019178,2]
[327744706,1716424233598,-460.23320504,0.00019178,2]
[327744707,1716424233607,-500.0,0.00019178,2]
[327744708,1716424233617,-500.0,0.00019178,2]
[327744709,1716424233626,-466.36197291,0.00019178,2]
[327744710,1716424233637,-33.63802709,0.00019178,2]
[327744711,1716424233646,-500.0,0.00019178,2]
[327744712,1716424233656,-500.0,0.00019178,2]
[327744713,1716424233665,-500.0,0.00019178,2]
[327744714,1716424233674,-500.0,0.00019178,2]
[327744715,1716424233683,-500.0,0.00019178,2]
[327744716,1716424233692,-500.0,0.00019178,2]
[327744717,1716424233701,-500.0,0.00019178,2]
[327744718,1716424233711,-500.0,0.00019178,2]
[327744719,1716424233721,-500.0,0.00019178,2]
[327744720,1716424233731,-500.0,0.00019178,2]
[327744721,1716424233741,-500.0,0.00019178,2]
[327744722,1716424233750,-368.87228752,0.00019178,2]
[327744723,1716424233762,-131.12771248,0.00019178,2]
[327744724,1716424233771,-177.55972277,0.00019178,2]
[327744725,1716424233785,-22.44027723,0.00019178,2]
[327744726,1716424233794,-882.52504694,0.00019178,2]
[327744727,1716424233806,-357.46371413,0.00019178,2]
[327744728,1716424233818,-331.5,0.00019178,2]
[327744729,1716424234122,5166.73317447,0.00028,30]
[327744746,1716424237395,-1562.14123893,0.00019178,2]
[327744748,1716424237406,-3881.14394197,0.000192,2]
[327744750,1716424237416,-809.0,0.0001925,2]
[327744752,1716424237425,-156.172,0.0001925,2]
[327744754,1716424237434,-164.0,0.0001925,2]
[327744756,1716424237443,-589.369,0.0001925,2]
[327744758,1716424237452,-470.532,0.0001925,2]
[327744759,1716424237463,-1649.0,0.0001925,2]
[327744760,1716424237472,-2395.0,0.0001925,2]
[327744761,1716424237481,-219.0,0.0001925,2]
[327744762,1716424237491,-153.805,0.0001925,2]
[327744763,1716424237500,-1137.0,0.0001925,2]
[327744764,1716424237510,-3162.0,0.0001925,2]
[327744765,1716424237520,-1061.0,0.0001925,2]
[327744766,1716424237531,-1029.70658006,0.0001925,2]
[327744767,1716424237611,-4104.29341994,0.0001925,2]
[327744768,1716424237620,-186.57066506,0.0001925,2]
[327744770,1716424237674,-1213.42933494,0.0001925,2]
[327744771,1716424237683,-1217.093,0.0001925,2]
[327744772,1716424237693,-5759.0,0.0001925,2]
[327744773,1716424237702,-289.0,0.0001925,2]
[327744775,1716424237712,-1465.0,0.0001925,2]
[327744777,1716424237721,-974.0,0.0001925,2]
[327744779,1716424237730,-167.0,0.00019373,2]
[327744781,1716424237740,-413.767,0.00019392,2]
[327744782,1716424237748,-413.767,0.00019392,2]
[327744784,1716424237757,-413.767,0.00019392,2]
[327744786,1716424237767,-413.767,0.00019392,2]
[327744788,1716424237778,-413.767,0.00019392,2]
[327744790,1716424237787,-413.767,0.00019392,2]
[327744791,1716424237796,-413.767,0.00019392,2]
[327744792,1716424237806,-413.767,0.00019392,2]
[327744793,1716424237815,-413.767,0.00019392,2]
[327744794,1716424237824,-413.767,0.00019392,2]
[327744795,1716424237834,-415.49,0.00019392,2]
[327744796,1716424237843,-164.33107516,0.000194,2]
[327744797,1716424237852,-173.08,0.0001947,2]
[327744798,1716424237862,-3639.914,0.0001951,2]
[327744799,1716424237871,-151.0,0.00019523,3]
[327744800,1716424237880,-151.0,0.00019523,2]
[327744801,1716424237889,-3230.55733209,0.00019536,2]
[327744802,1716424237905,-397.226964,0.00019536,2]
[327744803,1716424237955,-1453.85621766,0.00019536,2]
[327744804,1716424237966,-272.73259889,0.00019536,2]
[327744810,1716424240065,-2161.0,0.0001925,2]
[327744811,1716424240076,-340.51344197,0.00019536,2]
[327744812,1716424240087,-548.0,0.00019767,2]
[327744813,1716424240096,-160.84571027,0.00019859,2]
[327744814,1716424240106,-150.0,0.0001989,2]
[327744815,1716424240116,-150.0,0.0001989,2]
[327744816,1716424240125,-300.0,0.0001989,2]
[327744817,1716424240135,-1000.0,0.00019927,2]
[327744819,1716424240144,-167.0,0.00019938,2]
[327744820,1716424240154,-155.0,0.00019998,2]
[327744821,1716424240163,-155.0,0.0002,2]
[327744822,1716424240173,-155.0,0.0002,2]
[327744823,1716424240182,-5186.20094472,0.0002,2]
[327744824,1716424240192,-155.0,0.0002,2]
[327744825,1716424240202,-627.95805638,0.0002,2]
[327744826,1716424240212,-862.31038971,0.0002,2]
[327744827,1716424240221,-1773.62143972,0.0002,2]
[327744828,1716424240231,-6239.63008206,0.0002,2]
[327744829,1716424240240,-155.0,0.0002,2]
[327744830,1716424240250,-155.0,0.0002,2]
[327744832,1716424240259,-7154.91993517,0.0002,2]
[327744852,1716424242750,-658.42710824,0.0001925,2]
[327744893,1716424478138,917821.04474762,0.00020527,11]
[327744894,1716424478171,19502.39538609,0.00020527,11]
[327744896,1716424596061,180497.60461391,0.0002026,11]
[327744897,1716424643281,1298.39020343,0.00012348,2]
[327744898,1716424657240,154.03,0.00021589,30]
[327744899,1716424657573,154.03,0.00025894,30]
[327744901,1716424717047,378412.91775989,0.00019986,11]
[327744902,1716424832854,121301.21822684,0.0002,11]
[327744903,1716425040754,564.99220099,0.00011568,2]
[327744904,1716425164096,615.16024634,0.00031,120]
[327744905,1716425226049,154.34,0.00021589,30]
[327744906,1716425226420,154.34,0.00026226,30]
[327744911,1716425367138,457.85498334,0.00031,120]
[327744916,1716425431761,-643.64424175,0.00012875,2]
[327744917,1716425431771,-2223.04939775,0.00012875,2]
[327744918,1716425431781,-1064.33887229,0.00012876,2]
[327744919,1716425431790,-1382.96758821,0.00012877,2]
[327744920,1716425431802,-1626.74341642,0.00012877,2]
[327744921,1716425431811,-2020.4562,0.000129,2]
[327744922,1716425431820,-2982.9703,0.000129,2]
[327744923,1716425431830,-185.61484288,0.00012997,2]
[327744924,1716425431839,-790.00185035,0.00012998,2]
[327744925,1716425431849,-176.56446522,0.00012998,2]
[327744926,1716425431858,-291.22757195,0.00012998,2]
[327744927,1716425431867,-9974.61224222,0.00012998,2]
[327744928,1716425431876,-235.95016862,0.00012998,2]
[327744929,1716425431885,-234.29329078,0.00012998,2]
[327744930,1716425431895,-622.99559435,0.00012998,2]
[327744931,1716425431903,-392.43718635,0.00012998,2]
[327744932,1716425431912,-3089.44753044,0.00012998,2]
[327744933,1716425431921,-1148.49325432,0.00012998,2]
[327744934,1716425431931,-1306.62286596,0.00012998,2]
[327744935,1716425431940,-1789.86171606,0.00012998,2]
[327744936,1716425432505,-9145.85129955,0.00012998,2]
[327744937,1716425432514,-710.94730096,0.00012998,2]
[327744938,1716425432524,-238.80480051,0.00012998,2]